bitfinex-derivatives/quotes_BTCF0:USTF0_20250318
["timestamp","ask_amount","ask_price","bid_price","bid_amount"]
[1742311079283,0.175,81678.0,81677.0,0.1224432]
[1742311079574,0.1167,81678.0,81677.0,0.1224432]
[1742311079965,0.075,81678.0,81677.0,0.1224432]
[1742311080165,0.007,81678.0,81677.0,0.1224432]
[1742311081473,0.061209,81694.0,81693.0,0.1224193]
[1742311081671,0.11278551,81698.0,81695.0,0.1224163]
[1742311081871,0.1224021,81705.0,81699.0,0.0612051]
[1742311082088,0.1,81705.0,81704.0,0.1224028]
[1742311082383,0.4831926,81712.0,81711.0,0.1223923]
[1742311082579,0.1,81712.0,81711.0,0.1223923]
[1742311082882,0.1813,81712.0,81711.0,0.1223923]
[1742311083183,0.0663,81712.0,81711.0,0.21507088]
[1742311083368,0.1317758,81714.0,81713.0,0.1223893]
[1742311084179,0.3608,81738.0,81728.0,0.1223668]
[1742311084380,0.0611818,81731.0,81728.0,0.1223668]
[1742311084585,0.287864,81730.0,81729.0,0.1223653]
[1742311085169,0.277864,81730.0,81729.0,0.1223653]
[1742311085370,0.293764,81730.0,81729.0,0.1223653]
[1742311085580,0.293764,81730.0,81724.0,0.4831722]
[1742311085581,0.1223713,81725.0,81724.0,0.4831722]
[1742311085777,0.1223682,81728.0,81727.0,0.1835487]
[1742311086683,0.1407,81728.0,81727.0,0.1835487]
[1742311086983,0.2630668,81728.0,81727.0,0.1835487]
[1742311087168,0.2660668,81728.0,81727.0,0.1835487]
[1742311087368,0.1437,81728.0,81727.0,0.1835487]
[1742311087570,0.0728,81728.0,81727.0,0.1835487]
[1742311087773,0.0709,81736.0,81735.0,0.1223563]
[1742311088181,0.0679,81737.0,81735.0,0.1223563]
[1742311088182,0.0679,81737.0,81736.0,0.1223548]
[1742311088585,0.00018355,81738.0,81737.0,0.1223534]
[1742311089372,0.12253545,81738.0,81737.0,0.1223534]
[1742311090590,0.12393545,81738.0,81737.0,0.1223534]
[1742311090785,0.23153545,81738.0,81737.0,0.1223534]
[1742311091179,0.23153545,81738.0,81732.0,0.3608]
[1742311091180,0.1223593,81733.0,81732.0,0.3608]
[1742311091379,0.1233593,81733.0,81732.0,0.4831608]
[1742311091591,0.2223593,81733.0,81732.0,0.4831608]
[1742311092682,0.106,81733.0,81732.0,0.4831608]
[1742311092986,0.006,81733.0,81732.0,0.4831608]
[1742311093586,0.006,81733.0,81732.0,0.5505608]
[1742311094293,0.006,81733.0,81732.0,0.6800408]
[1742311094487,0.0611708,81745.0,81732.0,0.6800408]
[1742311094488,0.0611606,81759.0,81732.0,0.55768]
[1742311094689,0.0692,81750.0,81749.0,0.1223354]
[1742311094986,0.2898204,81759.0,81758.0,0.1223219]
[1742311095287,0.1675,81759.0,81758.0,0.1223219]
[1742311095499,0.1093,81759.0,81758.0,0.1223219]
[1742311095688,0.12249235,81767.0,81766.0,0.1834612]
[1742311096388,0.00018355,81767.0,81766.0,0.2534612]
[1742311096689,0.04208355,81767.0,81766.0,0.2534612]
[1742311096898,0.00018355,81767.0,81766.0,0.2534612]
[1742311097091,0.1834426,81776.0,81775.0,0.122295]
[1742311098494,0.0611516,81771.0,81767.0,0.00018344]
[1742311098683,0.0672,81770.0,81768.0,0.1223055]
[1742311098883,0.189504,81770.0,81769.0,0.1895055]
[1742311099092,0.0672,81770.0,81769.0,0.1895055]
[1742311099794,0.009,81776.0,81775.0,0.12221845]
[1742311099981,0.003,81776.0,81775.0,0.1490782]
[1742311100192,0.0732,81776.0,81775.0,0.1490782]
[1742311100378,0.195495,81776.0,81775.0,0.1490782]
[1742311100590,0.0732,81776.0,81775.0,0.1490782]
[1742311100993,0.195495,81776.0,81775.0,0.1490782]
[1742311101190,0.1421,81776.0,81775.0,0.2178782]
[1742311102091,0.00018344,81784.0,81783.0,0.1222845]
[1742311102696,0.12246644,81784.0,81783.0,0.1222845]
[1742311103484,0.26686644,81784.0,81783.0,0.1942845]
[1742311103782,0.18638344,81784.0,81783.0,0.1942845]
[1742311104596,0.14458344,81784.0,81783.0,0.1942845]
[1742311104787,0.0727,81791.0,81790.0,0.1222741]
[1742311105296,0.1949726,81791.0,81790.0,0.1222741]
[1742311105597,0.1949726,81791.0,81790.0,0.1942741]
[1742311105982,0.1959726,81791.0,81790.0,0.1942741]
[1742311106187,0.1969726,81791.0,81790.0,0.1942741]
[1742311106388,0.0747,81791.0,81788.0,0.0611378]
[1742311106590,0.1222756,81789.0,81788.0,0.0611378]
[1742311106992,0.1912756,81789.0,81788.0,0.0611378]
[1742311107881,0.0611385,81788.0,81786.0,0.0611393]
[1742311108089,0.1222845,81783.0,81782.0,0.00018344]
[1742311108484,0.1223159,81762.0,81761.0,0.4831168]
[1742311108991,0.1834714,81764.0,81763.0,0.1223144]
[1742311109781,0.2683714,81764.0,81763.0,0.1223144]
[1742311110098,0.2683714,81764.0,81761.0,0.03280063]
[1742311110099,0.1223159,81762.0,81761.0,0.03280063]
[1742311110284,0.1541159,81762.0,81761.0,0.006]
[1742311110489,0.2262159,81762.0,81761.0,0.006]
[1742311110686,0.2202159,81762.0,81761.0,0.006]
[1742311110886,0.1223249,81756.0,81742.0,0.88876]
[1742311111186,0.11447,81747.0,81744.0,0.1223416]
[1742311111499,0.1223444,81743.0,81742.0,1.0117429]
[1742311111699,0.2223444,81743.0,81742.0,1.03743309]
[1742311111892,0.2944444,81743.0,81742.0,1.03743309]
[1742311112197,0.2894444,81743.0,81742.0,0.91509019]
[1742311112490,0.2195444,81743.0,81742.0,0.91509019]
[1742311112697,0.2894444,81743.0,81742.0,0.91509019]
[1742311112895,0.2321444,81743.0,81742.0,0.88876]
[1742311113086,0.2434444,81743.0,81742.0,0.88876]
[1742311113592,0.2444444,81743.0,81742.0,0.88876]
[1742311113898,0.1223563,81735.0,81734.0,0.00018344]
[1742311114096,0.1753563,81735.0,81734.0,0.12254124]
[1742311114298,0.1541563,81735.0,81734.0,0.12254124]
[1742311114502,0.1753563,81735.0,81734.0,0.12254124]
[1742311115094,0.2223563,81735.0,81734.0,0.02666913]
[1742311115296,0.1641563,81735.0,81734.0,0.02666913]
[1742311115489,0.1542563,81735.0,81734.0,0.02666913]
[1742311115795,0.1641563,81735.0,81734.0,0.02766913]
[1742311115999,0.1754563,81735.0,81734.0,0.15002693]
[1742311116698,0.0531,81735.0,81734.0,0.65162693]
[1742311116904,0.069,81736.0,81735.0,0.1223563]
[1742311117101,0.069,81736.0,81735.0,0.2631563]
[1742311117411,0.169,81736.0,81735.0,0.2631563]
[1742311117789,0.069,81736.0,81735.0,0.2631563]
[1742311118196,0.1835028,81750.0,81749.0,0.1223339]
[1742311118402,0.1223369,81748.0,81747.0,0.1223368]
[1742311118700,0.1223399,81746.0,81745.0,0.0611705]
[1742311119101,0.1952369,81749.0,81748.0,0.1223369]
[1742311119291,0.0729,81749.0,81748.0,0.1223369]
[1742311119602,0.0729,81749.0,81748.0,0.2651369]
[1742311119603,0.1147,81749.0,81748.0,0.2651369]
[1742311119907,0.4137,81759.0,81758.0,0.1223219]
[1742311120204,0.1834753,81762.0,81761.0,0.1223159]
[1742311120400,0.1993753,81762.0,81761.0,0.2651159]
[1742311120794,0.1834753,81762.0,81761.0,0.2651159]
[1742311121004,0.0611594,81762.0,81761.0,0.2651159]
[1742311121305,0.12936,81770.0,81769.0,0.1223055]
[1742311121306,0.31300494,81770.0,81769.0,0.1223055]
[1742311121501,0.41300494,81770.0,81769.0,0.1223055]
[1742311121697,0.1223129,81764.0,81763.0,0.4831139]
[1742311122001,0.1541129,81764.0,81763.0,0.4831139]
[1742311122697,0.1542129,81764.0,81763.0,0.3608]
[1742311122903,0.2223129,81764.0,81763.0,0.4831144]
[1742311123103,0.3606129,81764.0,81763.0,0.4831144]
[1742311123302,0.2935129,81764.0,81763.0,0.4831144]
[1742311123599,0.2945129,81764.0,81763.0,0.4831144]
[1742311123802,0.1403,81764.0,81763.0,0.4831144]
[1742311124106,0.1403,81764.0,81763.0,0.5568144]
[1742311124606,0.2626129,81764.0,81763.0,0.5568144]
[1742311124804,0.2616129,81764.0,81763.0,0.4831144]
[1742311125108,0.2646129,81764.0,81763.0,0.3608]
[1742311125298,0.1223234,81757.0,81753.0,0.06134804]
[1742311125494,0.1223234,81757.0,81756.0,0.4831243]
[1742311125797,0.1373,81759.0,81758.0,0.1223219]
[1742311126100,0.1373,81759.0,81758.0,0.1951219]
[1742311126297,0.1373,81759.0,81758.0,0.2684219]
[1742311126700,0.2596204,81759.0,81758.0,0.2684219]
[1742311127204,0.12932,81765.0,81764.0,0.1223129]
[1742311127503,0.0611543,81767.0,81766.0,0.12231]
[1742311128408,0.1223159,81763.0,81762.0,0.2446255]
[1742311128809,0.2651159,81763.0,81762.0,0.2446255]
[1742311129009,0.2970159,81763.0,81762.0,0.2446255]
[1742311129506,0.3651159,81763.0,81762.0,0.2446255]
[1742311129710,0.1223204,81759.0,81758.0,0.2684204]
[1742311130009,0.1541204,81759.0,81758.0,0.1223204]
[1742311130210,0.2969204,81759.0,81758.0,0.1223204]
[1742311130904,0.2969204,81759.0,81756.0,0.38820429]
[1742311130905,0.1223234,81757.0,81756.0,0.51052869]
[1742311131309,0.2663234,81757.0,81756.0,0.51052869]
[1742311131511,0.2663234,81757.0,81756.0,0.14972869]
[1742311131906,0.3663234,81757.0,81756.0,0.14972869]
[1742311132295,0.3081234,81757.0,81756.0,0.14972869]
[1742311132708,0.3081234,81757.0,81756.0,0.21812869]
[1742311132907,0.1742,81757.0,81756.0,0.29152869]
[1742311133205,0.2965234,81757.0,81756.0,0.29152869]
[1742311133410,0.0631608,81759.0,81756.0,0.29152869]
[1742311133411,0.0675,81776.0,81769.0,0.1223055]
[1742311133611,0.08508344,81770.0,81769.0,0.1223055]
[1742311133909,0.00018344,81770.0,81769.0,0.1223055]
[1742311134205,0.04198344,81770.0,81769.0,0.1929055]
[1742311134410,0.01618344,81770.0,81769.0,0.1929055]
[1742311134912,0.00018344,81770.0,81769.0,0.2599055]
[1742311135797,0.00418344,81770.0,81769.0,0.2599055]
[1742311136002,0.0689,81781.0,81780.0,0.122289]
[1742311136200,0.2011875,81781.0,81780.0,0.122289]
[1742311136405,0.2700875,81781.0,81780.0,0.259889]
[1742311136712,0.2700875,81781.0,81780.0,0.28654922]
[1742311137611,0.3600875,81781.0,81780.0,0.16426022]
[1742311137805,0.2759875,81781.0,81780.0,0.02666022]
[1742311138011,0.1222965,81775.0,81774.0,0.483097]
[1742311138213,0.1540965,81775.0,81774.0,0.6053938]
[1742311138414,0.2946965,81775.0,81774.0,0.6053938]
[1742311138803,0.3628965,81775.0,81774.0,0.6053938]
[1742311139112,0.2787965,81775.0,81774.0,0.02694444]
[1742311139414,0.1222995,81773.0,81772.0,0.12248374]
[1742311139711,0.0418,81773.0,81772.0,0.12248374]
[1742311139919,0.182,81773.0,81772.0,0.12248374]
[1742311140216,0.1932,81773.0,81772.0,0.14088344]
[1742311140406,0.2943995,81773.0,81772.0,0.00018344]
[1742311140603,0.3052995,81773.0,81772.0,0.12248444]
[1742311141106,0.6242995,81773.0,81772.0,0.00018344]
[1742311141501,0.6242995,81773.0,81772.0,0.12248444]
[1742311141710,0.2634995,81773.0,81772.0,0.12248444]
[1742311141913,0.2634995,81773.0,81772.0,0.00018344]
[1742311142104,0.2624995,81773.0,81772.0,0.00018344]
[1742311142301,0.2634995,81773.0,81772.0,0.00018344]
[1742311143018,0.2624995,81773.0,81772.0,0.00018344]
[1742311143401,0.1432,81773.0,81772.0,0.12248444]
[1742311143602,0.1432,81773.0,81772.0,0.26578444]
[1742311144906,0.006,81773.0,81772.0,0.26578444]
[1742311145421,0.4137,81782.0,81781.0,0.1222875]
[1742311145422,0.4813,81782.0,81781.0,0.1222875]
[1742311145902,0.4813,81782.0,81781.0,0.2586875]
[1742311146102,0.1676,81782.0,81781.0,0.2586875]
[1742311146302,0.0611437,81781.0,81772.0,0.00018344]
[1742311146504,0.1222995,81773.0,81772.0,0.00018344]
[1742311146704,0.2674795,81773.0,81772.0,0.00018344]
[1742311146914,0.4938795,81773.0,81772.0,0.00018344]
[1742311147404,0.4345795,81773.0,81772.0,0.00018344]
[1742311147606,0.4346795,81773.0,81772.0,0.00018344]
[1742311148515,0.3675995,81773.0,81772.0,0.12248444]
[1742311148721,0.3092995,81773.0,81772.0,0.26018444]
[1742311149018,0.3675995,81773.0,81772.0,0.26018444]
[1742311149220,0.3655995,81773.0,81772.0,0.26018444]
[1742311149423,0.3675995,81773.0,81772.0,0.26018444]
[1742311150809,0.2834995,81773.0,81772.0,0.00018344]
[1742311151011,0.3675995,81773.0,81772.0,0.00018344]
[1742311151206,0.6283995,81773.0,81772.0,0.00018344]
[1742311151412,0.1834799,81760.0,81759.0,0.1223195]
[1742311151623,0.1834799,81760.0,81757.0,0.49215189]
[1742311151624,0.1223219,81758.0,81757.0,0.49215189]
[1742311151811,0.1223219,81758.0,81757.0,0.00902989]
[1742311152015,0.1223249,81756.0,81755.0,0.0701]
[1742311152224,0.1223264,81755.0,81754.0,0.1223275]
[1742311152521,0.2627264,81755.0,81754.0,0.1223275]
[1742311152818,0.0611654,81752.0,81746.0,0.00018344]
[1742311153005,0.1223354,81749.0,81748.0,0.4831369]
[1742311153420,0.2627354,81749.0,81748.0,0.45580278]
[1742311153622,0.2627354,81749.0,81748.0,0.57813968]
[1742311153918,0.2627354,81749.0,81748.0,0.28963968]
[1742311154323,0.1223384,81747.0,81746.0,0.00018344]
[1742311154629,0.1223698,81726.0,81725.0,0.12928]
[1742311154946,0.1835425,81735.0,81734.0,0.1223563]
[1742311155122,0.1835425,81735.0,81734.0,0.14676386]
[1742311155312,0.3188425,81735.0,81734.0,0.14676386]
[1742311155517,0.3188425,81735.0,81734.0,0.21856386]
[1742311155915,0.3188425,81735.0,81734.0,0.02440756]
[1742311156117,0.1223623,81731.0,81730.0,0.0718]
[1742311156424,0.1223623,81731.0,81726.0,0.00018344]
[1742311156425,0.2223683,81727.0,81726.0,0.00018344]
[1742311156618,0.1461683,81727.0,81726.0,0.00018344]
[1742311156928,0.2223683,81727.0,81726.0,0.0242125]
[1742311157117,0.1541683,81727.0,81726.0,0.00018344]
[1742311157432,0.1541683,81727.0,81722.0,0.02384976]
[1742311157433,0.1223743,81723.0,81722.0,0.02384976]
[1742311157611,0.1223833,81717.0,81716.0,0.1223844]
[1742311157927,0.2223833,81717.0,81716.0,0.1223844]
[1742311158130,0.1642833,81717.0,81716.0,0.1223844]
[1742311158320,0.1562833,81717.0,81716.0,0.1223844]
[1742311158518,0.1562833,81717.0,81716.0,0.14612897]
[1742311158715,0.1562833,81717.0,81716.0,0.22002897]
[1742311158911,0.1572833,81717.0,81716.0,0.22502897]
[1742311159111,0.2153833,81717.0,81716.0,0.22502897]
[1742311159423,0.2163833,81717.0,81716.0,0.01]
[1742311159727,0.1482833,81717.0,81716.0,0.03436137]
[1742311159927,0.2163833,81717.0,81716.0,0.15674617]
[1742311160228,0.2163833,81717.0,81716.0,0.15174617]
[1742311160521,0.2163833,81717.0,81716.0,0.02936137]
[1742311160918,0.2163833,81717.0,81716.0,0.15174617]
[1742311161314,0.2153833,81717.0,81716.0,0.02436137]
[1742311161630,0.2173833,81717.0,81716.0,0.1223848]
[1742311161821,0.2193833,81717.0,81716.0,0.1223848]
[1742311162021,0.2203833,81717.0,81716.0,0.1223848]
[1742311162730,0.2203833,81717.0,81716.0,0.2640848]
[1742311162931,0.23532,81717.0,81716.0,0.2640848]
[1742311163229,0.2995033,81717.0,81716.0,0.2640848]
[1742311163525,0.0996,81717.0,81716.0,0.2640848]
[1742311163830,0.2283833,81717.0,81716.0,0.2640848]
[1742311164228,0.106,81717.0,81716.0,0.2640848]
[1742311164419,0.2273833,81717.0,81716.0,0.6248848]
[1742311164818,0.2253833,81717.0,81716.0,0.6248848]
[1742311165026,0.2233833,81717.0,81716.0,0.6248848]
[1742311165225,0.2243833,81717.0,81716.0,0.6248848]
[1742311165425,0.1561833,81717.0,81716.0,0.6248848]
[1742311165622,0.2243833,81717.0,81716.0,0.6248848]
[1742311165823,0.2243833,81717.0,81716.0,0.5025]
[1742311166022,0.2243833,81717.0,81716.0,0.6248848]
[1742311166320,0.2233833,81717.0,81716.0,0.3608]
[1742311166529,0.2243833,81717.0,81716.0,0.4831848]
[1742311166924,0.3632833,81717.0,81716.0,0.3608]
[1742311167129,0.1223878,81714.0,81713.0,0.14597608]
[1742311167521,0.2608878,81714.0,81713.0,0.14597608]
[1742311168321,0.2608878,81714.0,81713.0,0.21647608]
[1742311168626,0.3628878,81714.0,81713.0,0.21647608]
[1742311168835,0.3628878,81714.0,81713.0,0.09408678]
[1742311169425,0.3045878,81714.0,81713.0,0.09408678]
[1742311169626,0.3055878,81714.0,81713.0,0.16368678]
[1742311170430,0.3638878,81714.0,81713.0,0.02358678]
[1742311170628,0.1223908,81712.0,81711.0,0.1931908]
[1742311171140,0.1,81712.0,81711.0,0.2618908]
[1742311171337,0.0417,81712.0,81711.0,0.2618908]
[1742311171520,0.1,81712.0,81711.0,0.2618908]
[1742311171723,0.003,81714.0,81713.0,0.1223893]
[1742311171935,0.2243878,81714.0,81713.0,0.2618893]
[1742311172132,0.1,81714.0,81713.0,0.2618893]
[1742311172338,0.0611797,81733.0,81724.0,0.1223728]
[1742311172536,0.131081,81732.0,81731.0,0.1223623]
[1742311172739,0.12932,81736.0,81733.0,0.0611796]
[1742311173040,0.1223553,81736.0,81735.0,0.1223563]
[1742311173436,0.1942553,81736.0,81735.0,0.1223563]
[1742311173839,0.00018355,81744.0,81734.0,0.0611789]
[1742311174035,0.00018355,81744.0,81743.0,0.1223444]
[1742311174235,0.12252645,81744.0,81743.0,0.1223444]
[1742311174651,0.19442645,81744.0,81743.0,0.1223444]
[1742311174944,0.26232645,81744.0,81743.0,0.1223444]
[1742311175143,0.26532645,81744.0,81743.0,0.1223444]
[1742311175640,0.1223444,81743.0,81742.0,0.3608]
[1742311175939,0.1835337,81737.0,81736.0,0.1223548]
[1742311176339,0.0611774,81736.0,81732.0,0.0611797]
[1742311176643,0.1223593,81733.0,81732.0,0.0611797]
[1742311176843,0.1223668,81728.0,81727.0,0.12254775]
[1742311177143,0.1223668,81728.0,81727.0,0.24491405]
[1742311177335,0.0611792,81734.0,81728.0,0.0611834]
[1742311177537,0.1886567,81735.0,81734.0,0.1835367]
[1742311178247,0.3617567,81735.0,81734.0,0.1835367]
[1742311178627,0.3617567,81735.0,81734.0,0.0611789]
[1742311178833,0.2617567,81735.0,81734.0,0.0611789]
[1742311179040,0.3617567,81735.0,81734.0,0.0611789]
[1742311179242,0.102,81735.0,81734.0,0.0611789]
[1742311180046,0.2273563,81735.0,81734.0,0.0611789]
[1742311180250,0.3706563,81735.0,81734.0,0.0611789]
[1742311180744,0.3676563,81735.0,81734.0,0.0611789]
[1742311180935,0.2453,81735.0,81734.0,0.0611789]
[1742311181135,0.102,81735.0,81734.0,0.0611789]
[1742311181335,0.2223563,81735.0,81734.0,0.0611789]
[1742311181545,0.2253563,81735.0,81734.0,0.0611789]
[1742311182139,0.2233563,81735.0,81734.0,0.0611789]
[1742311182346,0.3622563,81735.0,81734.0,0.0611789]
[1742311182533,0.3632563,81735.0,81734.0,0.0611789]
[1742311182733,0.1223668,81728.0,81727.0,0.18372755]
[1742311182932,0.2223668,81728.0,81727.0,0.18372755]
[1742311183132,0.2612668,81728.0,81727.0,0.18372755]
[1742311183335,0.2612668,81728.0,81727.0,0.25232755]
[1742311183838,0.2612668,81728.0,81727.0,0.00018355]
[1742311184044,0.2612668,81728.0,81727.0,0.12255185]
[1742311184348,0.2622668,81728.0,81727.0,0.00018355]
[1742311185135,0.2622668,81728.0,81727.0,0.14594299]
[1742311185644,0.2632668,81728.0,81727.0,0.14594299]
[1742311186441,0.2632668,81728.0,81727.0,0.00018355]
[1742311186644,0.2662668,81728.0,81727.0,0.00018355]
[1742311187448,0.2692668,81728.0,81727.0,0.00018355]
[1742311187748,0.1223833,81717.0,81716.0,0.0677]
[1742311187947,0.1223833,81717.0,81716.0,0.1900793]
[1742311188348,0.2614833,81717.0,81716.0,0.1900793]
[1742311188537,0.1391,81717.0,81716.0,0.21388643]
[1742311188735,0.0697,81717.0,81716.0,0.57468643]
[1742311188931,0.0682,81721.0,81720.0,0.1223788]
[1742311189139,0.1,81723.0,81722.0,0.1835636]
[1742311190244,0.2223743,81723.0,81722.0,0.1835636]
[1742311190636,0.2771743,81723.0,81722.0,0.1835636]
[1742311190946,0.2771743,81723.0,81720.0,0.2580687]
[1742311190947,0.1223773,81721.0,81720.0,0.2580687]
[1742311191334,0.3493773,81721.0,81720.0,0.2580687]
[1742311191646,0.3611773,81721.0,81720.0,0.2580687]
[1742311191946,0.2269,81721.0,81720.0,0.2580687]
[1742311192249,0.1871773,81721.0,81720.0,0.2580687]
[1742311192462,0.1871773,81721.0,81720.0,0.1976887]
[1742311192637,0.1872773,81721.0,81720.0,0.1976887]
[1742311192950,0.3272773,81721.0,81720.0,0.1976887]
[1742311194142,0.3292773,81721.0,81720.0,0.1976887]
[1742311194349,0.3293773,81721.0,81720.0,0.0676]
[1742311194556,0.3663773,81721.0,81720.0,0.0676]
[1742311194849,0.3261773,81721.0,81720.0,0.1223788]
[1742311195551,0.3261773,81721.0,81720.0,0.1947788]
[1742311195735,0.3261773,81721.0,81720.0,0.2645788]
[1742311195939,0.3251773,81721.0,81720.0,0.1947788]
[1742311196650,0.3251773,81721.0,81720.0,0.2645788]
[1742311196836,0.3251773,81721.0,81720.0,0.1223788]
[1742311197239,0.0611902,81719.0,81717.0,0.2532733]
[1742311197447,0.0699,81718.0,81717.0,0.2006913]
[1742311197646,0.1365,81718.0,81717.0,0.2006913]
[1742311197854,0.3186818,81718.0,81717.0,0.2006913]
[1742311198043,0.1963,81718.0,81717.0,0.2006913]
[1742311198244,0.3186818,81718.0,81717.0,0.2006913]
[1742311198650,0.1782,81718.0,81717.0,0.2006913]
[1742311198849,0.3005818,81718.0,81717.0,0.2006913]
[1742311199242,0.002,81719.0,81718.0,0.1223818]
[1742311199446,0.004,81719.0,81718.0,0.1223818]
[1742311199748,0.004,81719.0,81718.0,0.2582818]
[1742311200255,0.00018355,81725.0,81724.0,0.1223728]
[1742311200437,0.00018355,81725.0,81724.0,0.8119528]
[1742311200752,0.0663,81733.0,81732.0,0.1223608]
[1742311201137,0.0663,81733.0,81732.0,0.2622608]
[1742311201654,0.1223413,81746.0,81745.0,0.1223414]
[1742311201947,0.3327862,81746.0,81745.0,0.1223414]
[1742311202147,0.3329862,81746.0,81745.0,0.1223414]
[1742311202353,0.1223474,81741.0,81740.0,0.2446914]
[1742311202542,0.2105474,81741.0,81740.0,0.2446914]
[1742311202742,0.3616474,81741.0,81740.0,0.2446914]
[1742311203336,0.1504,81741.0,81740.0,0.2446914]
[1742311203555,0.01148182,81755.0,81753.0,0.1223294]
[1742311203750,0.0556,81754.0,81752.0,0.0611654]
[1742311203943,0.0611587,81761.0,81760.0,0.0611594]
[1742311204444,0.3608,81762.0,81761.0,0.1223174]
[1742311204846,0.3618,81762.0,81761.0,0.1223174]
[1742311205153,0.3926,81762.0,81761.0,0.1223174]
[1742311205353,0.5149159,81762.0,81761.0,0.1223174]
[1742311206245,0.1223096,81767.0,81766.0,0.1223085]
[1742311206446,0.13167304,81768.0,81767.0,0.1223085]
[1742311207046,0.13167304,81768.0,81767.0,0.2515485]
[1742311207248,0.00018355,81770.0,81767.0,0.2515485]
[1742311207249,0.00018355,81770.0,81769.0,0.1223055]
[1742311207756,0.03198355,81770.0,81769.0,0.1223055]
[1742311208258,0.03198355,81770.0,81766.0,0.0089735]
[1742311208454,0.12231,81766.0,81765.0,0.3608]
[1742311208751,0.12231,81766.0,81765.0,0.4831115]
[1742311208961,0.26491,81766.0,81765.0,0.4831115]
[1742311209146,0.26491,81766.0,81765.0,0.14424682]
[1742311209343,0.32851,81766.0,81765.0,0.02193532]
[1742311209563,0.1834709,81765.0,81762.0,0.0611572]
[1742311209761,0.1834799,81761.0,81760.0,0.1223175]
[1742311210255,0.2152799,81761.0,81760.0,0.1223175]
[1742311210647,0.1993799,81761.0,81760.0,0.14422693]
[1742311211055,0.2834799,81761.0,81760.0,0.14422693]
[1742311211247,0.2884799,81761.0,81760.0,0.14422693]
[1742311211450,0.2934799,81761.0,81760.0,0.14422693]
[1742311211852,0.2934799,81761.0,81760.0,0.02190943]
[1742311212052,0.1223204,81759.0,81758.0,0.00018355]
[1742311212358,0.2223204,81759.0,81758.0,0.00018355]
[1742311212550,0.2223204,81759.0,81758.0,0.12250545]
[1742311212551,0.1223204,81759.0,81758.0,0.12250545]
[1742311212755,0.2402,81759.0,81758.0,0.12250545]
[1742311213061,0.3625204,81759.0,81758.0,0.12250545]
[1742311213259,0.2772204,81759.0,81758.0,0.12250545]
[1742311213560,0.3725204,81759.0,81758.0,0.12250545]
[1742311215550,0.3725204,81759.0,81758.0,0.00018355]
[1742311215748,0.3044204,81759.0,81758.0,0.00018355]
[1742311215956,0.3725204,81759.0,81758.0,0.00018355]
[1742311216253,0.3725204,81759.0,81758.0,0.12250545]
[1742311217063,0.2502,81759.0,81758.0,0.12250545]
[1742311217260,0.3725204,81759.0,81758.0,0.12250545]
[1742311217462,0.2502,81759.0,81758.0,0.12250545]
[1742311217671,0.1821,81759.0,81758.0,0.12250545]
[1742311217865,0.2502,81759.0,81758.0,0.12250545]
[1742311218066,0.1919,81759.0,81758.0,0.12250545]
[1742311218761,0.3142204,81759.0,81758.0,0.12250545]
[1742311218962,0.3043204,81759.0,81758.0,0.12250545]
[1742311219264,0.2502,81759.0,81758.0,0.12250545]
[1742311219466,0.01,81759.0,81758.0,0.12250545]
[1742311219669,0.01,81759.0,81758.0,0.18980545]
[1742311220264,0.006,81759.0,81758.0,0.18980545]
[1742311220470,0.00092,81769.0,81768.0,0.122307]
[1742311220664,0.0696,81793.0,81792.0,0.1222711]
[1742311220964,0.13227921,81799.0,81798.0,0.1222621]
[1742311221169,0.34548284,81806.0,81805.0,0.1222516]
[1742311221370,0.34548284,81806.0,81805.0,0.2514116]
[1742311221671,0.46763304,81806.0,81805.0,0.2514116]
[1742311222062,0.34538284,81806.0,81805.0,0.2514116]
[1742311222373,0.0103,81806.0,81805.0,0.2514116]
[1742311222555,0.0103,81806.0,81805.0,0.6790116]
[1742311222760,0.069,81809.0,81808.0,0.1222472]
[1742311222960,0.0669,81813.0,81812.0,0.1222412]
[1742311223172,0.1891397,81813.0,81812.0,0.2514012]
[1742311223565,0.2581397,81813.0,81812.0,0.2514012]
[1742311224269,0.1359,81813.0,81812.0,0.3182012]
[1742311224465,0.1409,81813.0,81812.0,0.3182012]
[1742311224665,0.2631397,81813.0,81812.0,0.3182012]
[1742311224865,0.1409,81813.0,81812.0,0.3182012]
[1742311225267,0.074,81813.0,81812.0,0.3182012]
[1742311225468,0.079,81813.0,81812.0,0.3182012]
[1742311225975,0.01,81813.0,81812.0,0.6790012]
[1742311227768,0.00018343,81814.0,81813.0,0.1222397]
[1742311227965,0.00018343,81814.0,81813.0,0.1933397]
[1742311228175,0.0723,81841.0,81840.0,0.1221994]
[1742311228475,0.2945001,81841.0,81840.0,0.1221994]
[1742311229272,0.2945001,81841.0,81840.0,0.14379191]
[1742311229672,0.1222001,81841.0,81840.0,0.14379191]
[1742311229989,0.2902001,81841.0,81840.0,0.14379191]
[1742311230182,0.1902001,81841.0,81840.0,0.02159251]
[1742311230473,0.1902001,81841.0,81833.0,0.8894]
[1742311230474,0.1222083,81834.0,81833.0,0.8894]
[1742311230677,0.4830083,81834.0,81833.0,0.88856]
[1742311230880,0.4820083,81834.0,81833.0,0.88856]
[1742311231062,0.4820083,81834.0,81833.0,0.90978717]
[1742311231263,0.6202083,81834.0,81833.0,0.90978717]
[1742311231863,0.6242083,81834.0,81833.0,0.90978717]
[1742311232067,0.6242083,81834.0,81833.0,1.03199697]
[1742311233181,0.2634083,81834.0,81833.0,1.03199697]
[1742311233376,0.2674083,81834.0,81833.0,1.03199697]
[1742311235379,0.3674083,81834.0,81833.0,0.90978717]
[1742311235575,0.3674083,81834.0,81833.0,1.03199697]
[1742311236979,0.2993083,81834.0,81833.0,0.90978717]
[1742311237174,0.2674083,81834.0,81833.0,0.90978717]
[1742311238480,0.2674083,81834.0,81833.0,1.10279697]
[1742311239883,0.008,81834.0,81833.0,1.10279697]
[1742311240185,0.008,81834.0,81833.0,1.17549697]
[1742311241182,0.004,81834.0,81833.0,1.17549697]
[1742311241377,0.008,81834.0,81833.0,1.17549697]
[1742311242175,0.004,81834.0,81833.0,1.17749697]
[1742311242773,0.004,81834.0,81833.0,1.17549697]
[1742311243084,0.004,81834.0,81833.0,1.17749697]
[1742311243386,0.1222056,81836.0,81835.0,0.0611033]
[1742311243686,0.1222056,81836.0,81835.0,0.4219033]
[1742311245003,0.122203,81838.0,81837.0,0.1833041]
[1742311245293,0.00012125,81849.0,81846.0,0.0610944]
[1742311245586,0.00012125,81849.0,81848.0,0.1221874]
[1742311245587,0.34449745,81849.0,81848.0,0.1221874]
[1742311245789,0.1221904,81846.0,81845.0,0.129]
[1742311245985,0.1832894,81845.0,81844.0,0.1221931]
[1742311246185,0.3548894,81845.0,81844.0,0.2511931]
[1742311246384,0.2548894,81845.0,81844.0,0.2511931]
[1742311246589,0.2867894,81845.0,81844.0,0.2511931]
[1742311246884,0.2867894,81845.0,81841.0,0.0610986]